fUST/lending_fUST_20250105
["ID","MTS","AMOUNT","RATE_DAILY","PERIOD"]
[347706663,1736075441271,-500.0,0.00019452,3]
[347706665,1736075441281,-564.37,0.00019452,3]
[347706667,1736075441291,-500.0,0.00019452,3]
[347706670,1736075441301,-500.0,0.00019452,3]
[347706672,1736075441311,-907.48,0.00019452,3]
[347706673,1736075441320,-500.0,0.00019452,3]
[347706675,1736075441330,-151.0,0.00019452,2]
[347706677,1736075441340,-151.0,0.00019452,2]
[347706679,1736075441350,-500.0,0.00019452,3]
[347706682,1736075441360,-151.0,0.00019452,2]
[347706683,1736075441370,-151.0,0.00019452,2]
[347706685,1736075441379,-818.38,0.00019452,3]
[347706687,1736075441390,-151.0,0.00019452,2]
[347706689,1736075441401,-151.0,0.00019452,2]
[347706691,1736075441411,-525.75,0.00019452,3]
[347706693,1736075441421,-230.946456,0.00019452,2]
[347706695,1736075441432,-151.0,0.00019452,2]
[347706697,1736075441442,-151.0,0.00019452,2]
[347706699,1736075441452,-500.0,0.00019452,3]
[347706702,1736075441462,-151.0,0.00019452,2]
[347706703,1736075441472,-151.0,0.00019452,2]
[347706705,1736075441481,-991.73,0.00019452,3]
[347706707,1736075441491,-500.0,0.00019452,3]
[347706710,1736075441501,-547.75,0.00019452,3]
[347706711,1736075441510,-515.31,0.00019452,3]
[347706713,1736075441519,-500.0,0.00019452,3]
[347706715,1736075441529,-500.0,0.00019452,3]
[347706718,1736075441539,-500.0,0.00019452,3]
[347706719,1736075441548,-563.22,0.00019452,3]
[347706722,1736075441557,-281.816328,0.00019452,2]
[347706723,1736075441567,-281.816328,0.00019452,2]
[347706725,1736075441576,-281.816328,0.00019452,2]
[347706727,1736075441585,-281.816328,0.00019452,2]
[347706729,1736075441595,-1372.4,0.00019452,3]
[347706732,1736075441605,-500.0,0.00019452,3]
[347706733,1736075441614,-768.06,0.00019452,3]
[347706735,1736075441624,-714.51,0.00019452,3]
[347706737,1736075441633,-151.0,0.00019452,2]
[347706740,1736075441643,-151.0,0.00019452,2]
[347706742,1736075441654,-500.0,0.00019452,3]
[347706743,1736075441663,-500.0,0.00019452,3]
[347706746,1736075441673,-873.1,0.00019452,3]
[347706747,1736075441683,-151.0,0.00019452,2]
[347706750,1736075441693,-228.640914,0.00019452,2]
[347706752,1736075441703,-151.0,0.00019452,2]
[347706754,1736075441712,-816.48,0.00019452,3]
[347706756,1736075441721,-500.0,0.00019452,3]
[347706757,1736075441730,-930.31,0.00019452,3]
[347706759,1736075441740,-500.0,0.00019452,3]
[347706761,1736075441749,-525.89,0.00019452,3]
[347706764,1736075441759,-2845.77,0.00019452,3]
[347706765,1736075441768,-566.98,0.00019452,3]
[347706768,1736075441779,-500.0,0.00019452,2]
[347706770,1736075441789,-785.9,0.00019452,3]
[347706772,1736075441798,-500.0,0.00019452,3]
[347706774,1736075441808,-500.0,0.00019452,3]
[347706776,1736075441817,-1509.43,0.00019452,3]
[347706778,1736075441827,-151.0,0.00019452,2]
[347706780,1736075441838,-151.0,0.00019452,2]
[347706782,1736075441848,-2013.44,0.00019452,3]
[347706784,1736075441857,-151.0,0.00019452,2]
[347706786,1736075441866,-226.776757,0.00019452,2]
[347706788,1736075441875,-561.54,0.00019452,3]
[347706790,1736075441885,-10802.82,0.00019452,3]
[347706792,1736075441894,-151.0,0.00019452,2]
[347706794,1736075441904,-1824.09,0.00019452,3]
[347706796,1736075441918,-151.0,0.00019452,2]
[347706798,1736075441927,-151.0,0.00019452,2]
[347706800,1736075441936,-35612.0,0.00019452,3]
[347706802,1736075441947,-151.0,0.00019452,2]
[347706804,1736075441956,-1707.81,0.00019452,3]
[347706806,1736075441966,-654.38,0.00019452,3]
[347706808,1736075441975,-6592.33,0.00019452,3]
[347706810,1736075441984,-4510.09,0.00019452,3]
[347706812,1736075441994,-500.0,0.00019452,3]
[347706814,1736075442003,-151.0,0.00019452,2]
[347706816,1736075442012,-1066.18,0.00019452,3]
[347706818,1736075442021,-201.60595907,0.00019452,3]
[347706820,1736075442031,-500.0,0.00019452,3]
[347706822,1736075442040,-500.0,0.00019452,3]
[347706824,1736075442050,-505.21051692,0.00019452,3]
[347706826,1736075442059,-500.0,0.00019452,3]
[347706828,1736075442069,-151.0,0.00019452,2]
[347706830,1736075442079,-188.42954116,0.00019452,3]
[347706832,1736075442088,-1833.92,0.00019452,3]
[347706834,1736075442097,-500.0,0.00019452,3]
[347706836,1736075442107,-500.0,0.00019452,3]
[347706838,1736075442116,-500.0,0.00019452,3]
[347706840,1736075442126,-733.28,0.00019452,3]
[347706842,1736075442135,-525.2,0.00019452,3]
[347706844,1736075442145,-3916.48,0.00019452,3]
[347706846,1736075442155,-500.0,0.00019452,3]
[347706848,1736075442164,-1237.83,0.00019452,3]
[347706850,1736075442174,-3023.5,0.00019452,3]
[347706852,1736075442185,-500.0,0.00019452,3]
[347706854,1736075442195,-1213.2,0.00019452,3]
[347706856,1736075442204,-500.0,0.00019452,3]
[347706858,1736075442214,-500.0,0.00019452,3]
[347706860,1736075442225,-500.0,0.00019452,3]
[347706862,1736075442235,-610.07,0.00019452,3]
[347706864,1736075442244,-500.0,0.00019452,3]
[347706866,1736075442253,-500.0,0.00019452,3]
[347706868,1736075442263,-1355.96,0.00019452,3]
[347706871,1736075442273,-2122.05,0.00019452,3]
[347706872,1736075442282,-606.57,0.00019452,3]
[347706875,1736075442292,-1541.8,0.00019452,3]
[347706877,1736075442302,-528.21,0.00019452,3]
[347706879,1736075442312,-151.0,0.00019452,2]
[347706881,1736075442321,-151.0,0.00019452,2]
[347706883,1736075442331,-874.48,0.00019452,3]
[347706885,1736075442341,-500.0,0.00019452,3]
[347706887,1736075442350,-150.06,0.00019452,2]
[347706889,1736075442361,-1622.68,0.00019452,3]
[347706891,1736075442371,-151.0,0.00019452,2]
[347706893,1736075442380,-749.53,0.00019452,3]
[347706895,1736075442390,-500.0,0.00019452,3]
[347706897,1736075442399,-500.0,0.00019452,3]
[347706899,1736075442409,-151.0,0.0001947,2]
[347706901,1736075442419,-151.0,0.00019486,5]
[347706903,1736075442429,-3000.0,0.000195,2]
[347706905,1736075442439,-6500.79,0.000195,2]
[347706907,1736075442448,-172.352984,0.000195,2]
[347706909,1736075442458,-151.0,0.00019567,5]
[347706911,1736075442467,-2927.28,0.00019572,3]
[347706913,1736075442477,-650.42,0.00019572,3]
[347706915,1736075442487,-500.0,0.00019572,3]
[347706917,1736075442496,-500.0,0.00019572,3]
[347706919,1736075442506,-1008.36,0.00019572,3]
[347706922,1736075442515,-500.0,0.00019572,3]
[347706924,1736075442524,-151.0,0.00019572,2]
[347706926,1736075442534,-500.0,0.00019572,3]
[347706928,1736075442543,-7526.86,0.00019572,3]
[347706930,1736075442553,-1008.72943175,0.0001959,2]
[347706932,1736075442562,-465.47049221,0.00019591,2]
[347706934,1736075442572,-402.4941531,0.000196,7]
[347706936,1736075442581,-151.0,0.00019648,5]
[347706938,1736075442591,-17123.0,0.000197,2]
[347706940,1736075442601,-151.0,0.000197,2]
[347706942,1736075442611,-151.0,0.000197,2]
[347706944,1736075442621,-151.0,0.000197,2]
[347706946,1736075442630,-166.1,0.00019714,2]
[347706948,1736075442640,-2972.31607555,0.00019726,2]
[347706950,1736075442649,-76561.50244962,0.00019726,2]
[347706952,1736075442659,-500.0,0.00019726,3]
[347706954,1736075442668,-150.06,0.00019726,2]
[347706956,1736075442678,-500.0,0.00019726,3]
[347706958,1736075442687,-771.43,0.00019726,3]
[347706960,1736075442697,-500.0,0.00019726,3]
[347706962,1736075442706,-151.0,0.00019726,2]
[347706965,1736075442716,-500.0,0.00019726,3]
[347706968,1736075442725,-500.0,0.00019726,3]
[347706971,1736075442735,-500.0,0.00019726,3]
[347706973,1736075442744,-151.0,0.00019726,2]
[347706975,1736075442752,-500.0,0.00019726,3]
[347706977,1736075442762,-416.01842019,0.00019726,3]
[347706979,1736075442771,-764.37,0.00019726,3]
[347706981,1736075442781,-559.18,0.00019726,3]
[347706984,1736075442791,-500.0,0.00019726,3]
[347706986,1736075442800,-500.0,0.00019726,3]
[347706989,1736075442809,-500.0,0.00019726,3]
[347706991,1736075442819,-188.933112,0.00019726,2]
[347706993,1736075442828,-1261.63,0.00019726,3]
[347706994,1736075442838,-500.0,0.00019726,3]
[347706996,1736075442847,-500.0,0.00019726,3]
[347707003,1736075442857,-151.0,0.00019726,2]
[347707004,1736075443022,-151.0,0.00019726,2]
[347707005,1736075443032,-500.0,0.00019726,3]
[347707006,1736075443041,-500.0,0.00019726,3]
[347707007,1736075443051,-500.0,0.00019726,3]
[347707008,1736075443059,-643.38,0.00019726,3]
[347707009,1736075443069,-620.09,0.00019726,3]
[347707010,1736075443079,-500.0,0.00019726,3]
[347707011,1736075443089,-564.37,0.00019726,3]
[347707012,1736075443098,-500.0,0.00019726,3]
[347707013,1736075443107,-500.0,0.00019726,3]
[347707014,1736075443117,-907.48,0.00019726,3]
[347707015,1736075443127,-500.0,0.00019726,3]
[347707016,1736075443136,-151.0,0.00019726,2]
[347707017,1736075443146,-151.0,0.00019726,2]
[347707018,1736075443156,-500.0,0.00019726,3]
[347707019,1736075443165,-151.0,0.00019726,2]
[347707020,1736075443175,-151.0,0.00019726,2]
[347707021,1736075443184,-818.38,0.00019726,3]
[347707022,1736075443194,-151.0,0.00019726,2]
[347707023,1736075443203,-151.0,0.00019726,2]
[347707024,1736075443213,-525.75,0.00019726,3]
[347707025,1736075443222,-151.0,0.00019726,2]
[347707026,1736075443231,-151.0,0.00019726,2]
[347707027,1736075443241,-500.0,0.00019726,3]
[347707028,1736075443250,-151.0,0.00019726,2]
[347707030,1736075443260,-151.0,0.00019726,2]
[347707031,1736075443270,-151.0,0.00019726,2]
[347707032,1736075443279,-991.73,0.00019726,3]
[347707033,1736075443289,-500.0,0.00019726,3]
[347707034,1736075443299,-547.75,0.00019726,3]
[347707035,1736075443308,-515.31,0.00019726,3]
[347707036,1736075443318,-500.0,0.00019726,3]
[347707037,1736075443327,-500.0,0.00019726,3]
[347707038,1736075443336,-500.0,0.00019726,3]
[347707039,1736075443346,-563.22,0.00019726,3]
[347707040,1736075443355,-281.816328,0.00019726,2]
[347707041,1736075443364,-281.816328,0.00019726,2]
[347707042,1736075443374,-281.816328,0.00019726,2]
[347707043,1736075443384,-281.816328,0.00019726,2]
[347707044,1736075443392,-281.816328,0.00019726,2]
[347707045,1736075443401,-281.816328,0.00019726,2]
[347707046,1736075443411,-1372.4,0.00019726,3]
[347707047,1736075443421,-500.0,0.00019726,3]
[347707048,1736075443430,-768.06,0.00019726,3]
[347707049,1736075443440,-714.51,0.00019726,3]
[347707050,1736075443450,-151.0,0.00019726,2]
[347707051,1736075443458,-500.0,0.00019726,3]
[347707052,1736075443468,-500.0,0.00019726,3]
[347707053,1736075443478,-873.1,0.00019726,3]
[347707054,1736075443488,-816.48,0.00019726,3]
[347707055,1736075443497,-500.0,0.00019726,3]
[347707056,1736075443507,-930.31,0.00019726,3]
[347707057,1736075443516,-500.0,0.00019726,3]
[347707058,1736075443526,-525.89,0.00019726,3]
[347707059,1736075443535,-2845.77,0.00019726,3]
[347707060,1736075443545,-566.98,0.00019726,3]
[347707061,1736075443555,-500.0,0.00019726,2]
[347707062,1736075443564,-785.9,0.00019726,3]
[347707063,1736075443573,-249.81704654,0.00019726,3]
[347707064,1736075443583,-320.74414507,0.00019726,3]
[347707065,1736075443593,-1509.43,0.00019726,3]
[347707066,1736075443602,-151.0,0.00019726,2]
[347707067,1736075443612,-2013.44,0.00019726,3]
[347707068,1736075443621,-151.0,0.00019726,2]
[347707069,1736075443631,-561.54,0.00019726,3]
[347707070,1736075443640,-10802.82,0.00019726,3]
[347707071,1736075443649,-151.0,0.00019726,2]
[347707072,1736075443660,-248.980388,0.00019726,2]
[347707073,1736075443669,-1824.09,0.00019726,3]
[347707074,1736075443679,-151.0,0.00019726,2]
[347707075,1736075443688,-35612.0,0.00019726,3]
[347707076,1736075443698,-1707.81,0.00019726,3]
[347707077,1736075443707,-654.38,0.00019726,3]
[347707078,1736075443717,-6592.33,0.00019726,3]
[347707079,1736075443726,-4510.09,0.00019726,3]
[347707080,1736075443736,-500.0,0.00019726,3]
[347707081,1736075443745,-1066.18,0.00019726,3]
[347707082,1736075443755,-500.0,0.00019726,3]
[347707083,1736075443764,-500.0,0.00019726,3]
[347707084,1736075443774,-1833.92,0.00019726,3]
[347707085,1736075443783,-500.0,0.00019726,3]
[347707086,1736075443792,-500.0,0.00019726,3]
[347707087,1736075443801,-500.0,0.00019726,3]
[347707088,1736075443810,-733.28,0.00019726,3]
[347707089,1736075443820,-525.2,0.00019726,3]
[347707090,1736075443829,-3916.48,0.00019726,3]
[347707091,1736075443839,-389.74493627,0.00019726,3]
[347707092,1736075443848,-1237.83,0.00019726,3]
[347707093,1736075443857,-3023.5,0.00019726,3]
[347707094,1736075443867,-500.0,0.00019726,3]
[347707095,1736075443877,-1213.2,0.00019726,3]
[347707096,1736075443886,-500.0,0.00019726,3]
[347707097,1736075443896,-500.0,0.00019726,3]
[347707098,1736075443905,-500.0,0.00019726,3]
[347707099,1736075443916,-610.07,0.00019726,3]
[347707100,1736075443926,-500.0,0.00019726,3]
[347707101,1736075443935,-500.0,0.00019726,3]
[347707102,1736075443945,-1355.96,0.00019726,3]
[347707103,1736075443955,-2122.05,0.00019726,3]
[347707104,1736075443965,-606.57,0.00019726,3]
[347707105,1736075443974,-1541.8,0.00019726,3]
[347707106,1736075443984,-528.21,0.00019726,3]
[347707107,1736075443993,-874.48,0.00019726,3]
[347707108,1736075444003,-500.0,0.00019726,3]
[347707109,1736075444012,-1622.68,0.00019726,3]
[347707110,1736075444022,-749.53,0.00019726,3]
[347707111,1736075444032,-500.0,0.00019726,3]
[347707112,1736075444041,-500.0,0.00019726,3]
[347707113,1736075444051,-1008.72943175,0.00019728,2]
[347707114,1736075444061,-151.0,0.00019729,5]
[347707115,1736075444071,-151.0,0.00019744,2]
[347707116,1736075444080,-13288.19,0.000198,2]
[347707117,1736075444089,-17288.58,0.000198,2]
[347707118,1736075444099,-743.62,0.000198,15]
[347707119,1736075444108,-151.0,0.000198,2]
[347707120,1736075444118,-151.0,0.000198,2]
[347707121,1736075444127,-151.0,0.000198,2]
[347707122,1736075444138,-151.0,0.000198,2]
[347707123,1736075444147,-151.0,0.000198,2]
[347707124,1736075444156,-151.0,0.000198,2]
[347707125,1736075444166,-151.0,0.000198,2]
[347707126,1736075444175,-151.0,0.000198,2]
[347707127,1736075444184,-151.0,0.000198,2]
[347707128,1736075444194,-151.0,0.000198,2]
[347707129,1736075444204,-151.0,0.000198,2]
[347707130,1736075444213,-10320.09018822,0.000198,2]
[347707131,1736075444223,-151.0,0.00019811,5]
[347707132,1736075444232,-2927.28,0.00019846,3]
[347707133,1736075444242,-650.42,0.00019846,3]
[347707134,1736075444251,-500.0,0.00019846,3]
[347707135,1736075444261,-500.0,0.00019846,3]
[347707136,1736075444271,-1008.36,0.00019846,3]
[347707137,1736075444280,-500.0,0.00019846,3]
[347707138,1736075444290,-500.0,0.00019846,3]
[347707139,1736075444299,-7526.86,0.00019846,3]
[347707140,1736075444308,-1008.72943175,0.00019866,2]
[347707141,1736075444318,-499.99999901,0.00019878,3]
[347707142,1736075444328,-151.0,0.00019892,5]
[347707143,1736075444337,-2000.0,0.000199,2]
[347707144,1736075444347,-151.0,0.000199,2]
[347707145,1736075444356,-151.0,0.000199,2]
[347707146,1736075444366,-151.0,0.000199,2]
[347707147,1736075444374,-151.0,0.000199,2]
[347707148,1736075444384,-151.0,0.000199,2]
[347707149,1736075444394,-151.0,0.000199,2]
[347707150,1736075444403,-500.0,0.00019973,2]
[347707152,1736075444412,-500.0,0.00019973,2]
[347707154,1736075444422,-151.0,0.00019973,5]
[347707156,1736075444431,-3000.0,0.0002,15]
[347707158,1736075444440,-500.0,0.0002,3]
[347707160,1736075444450,-228.05344206,0.0002,2]
[347707162,1736075444459,-5427.0,0.0002,2]
[347707164,1736075444469,-1757.0,0.0002,3]
[347707166,1736075444478,-1757.0,0.0002,3]
[347707168,1736075444488,-1757.0,0.0002,3]
[347707170,1736075444497,-1757.0,0.0002,3]
[347707172,1736075444506,-1757.0,0.0002,3]
[347707174,1736075444515,-1757.0,0.0002,3]
[347707176,1736075444525,-1724.0,0.0002,3]
[347707178,1736075444534,-1723.0,0.0002,3]
[347707180,1736075444543,-1723.0,0.0002,3]
[347707182,1736075444553,-1723.0,0.0002,3]
[347707184,1736075444562,-187.0,0.0002,2]
[347707186,1736075444571,-1000.0,0.0002,20]
[347707188,1736075444581,-1000.0,0.0002,3]
[347707190,1736075444593,-799.0,0.0002,10]
[347707192,1736075444602,-500.0,0.0002,3]
[347707194,1736075444611,-771.43,0.0002,3]
[347707196,1736075444621,-500.0,0.0002,3]
[347707198,1736075444631,-500.0,0.0002,3]
[347707200,1736075444640,-507.43827524,0.0002,3]
[347707202,1736075444649,-500.0,0.0002,3]
[347707204,1736075444659,-500.0,0.0002,3]
[347707206,1736075444668,-17044.0,0.0002,2]
[347707208,1736075444677,-764.37,0.0002,3]
[347707210,1736075444687,-559.18,0.0002,3]
[347707212,1736075444696,-500.0,0.0002,3]
[347707214,1736075444705,-500.0,0.0002,3]
[347707216,1736075444714,-500.0,0.0002,3]
[347707218,1736075444724,-1261.63,0.0002,3]
[347707220,1736075444734,-500.0,0.0002,3]
[347707222,1736075444743,-500.0,0.0002,3]
[347707225,1736075444753,-273.16504,0.0002,2]
[347707226,1736075444762,-500.0,0.0002,3]
[347707229,1736075444771,-500.0,0.0002,3]
[347707230,1736075444780,-500.0,0.0002,3]
[347707232,1736075444790,-643.38,0.0002,3]
[347707235,1736075444800,-620.09,0.0002,3]
[347707237,1736075444809,-500.0,0.0002,3]
[347707239,1736075444819,-564.37,0.0002,3]
[347707240,1736075444829,-500.0,0.0002,3]
[347707242,1736075444839,-500.0,0.0002,3]
[347707244,1736075444848,-500.0,0.0002,3]
[347707246,1736075444857,-907.48,0.0002,3]
[347707249,1736075444866,-500.0,0.0002,3]
[347707251,1736075444875,-151.0,0.0002,2]
[347707253,1736075444885,-500.0,0.0002,3]
[347707255,1736075444895,-151.0,0.0002,2]
[347707257,1736075444904,-151.0,0.0002,2]
[347707259,1736075444917,-219.58991,0.0002,2]
[347707261,1736075444927,-818.38,0.0002,3]
[347707263,1736075444937,-525.75,0.0002,3]
[347707265,1736075444946,-151.0,0.0002,2]
[347707267,1736075444956,-151.0,0.0002,2]
[347707269,1736075444966,-201.618152,0.0002,2]
[347707271,1736075444975,-500.0,0.0002,3]
[347707273,1736075444989,-991.73,0.0002,3]
[347707275,1736075444998,-500.0,0.0002,3]
[347707277,1736075445008,-547.75,0.0002,3]
[347707279,1736075445017,-515.31,0.0002,3]
[347707281,1736075445026,-500.0,0.0002,3]
[347707283,1736075445036,-500.0,0.0002,3]
[347707285,1736075445045,-500.0,0.0002,3]
[347707287,1736075445054,-563.22,0.0002,3]
[347707289,1736075445065,-281.816328,0.0002,2]
[347707291,1736075445075,-281.816328,0.0002,2]
[347707294,1736075445084,-281.816328,0.0002,2]
[347707295,1736075445098,-281.816328,0.0002,2]
[347707297,1736075445107,-281.816328,0.0002,2]
[347707299,1736075445117,-281.816328,0.0002,2]
[347707302,1736075445129,-1372.4,0.0002,3]
[347707304,1736075445138,-500.0,0.0002,3]
[347707306,1736075445147,-768.06,0.0002,3]
[347707308,1736075445157,-500.0,0.0002,3]
[347707310,1736075445166,-500.0,0.0002,3]
[347707312,1736075445175,-714.51,0.0002,3]
[347707314,1736075445185,-873.1,0.0002,3]
[347707316,1736075445194,-816.48,0.0002,3]
[347707318,1736075445204,-500.0,0.0002,3]
[347707320,1736075445213,-930.31,0.0002,3]
[347707322,1736075445223,-500.0,0.0002,3]
[347707324,1736075445232,-525.89,0.0002,3]
[347707326,1736075445242,-2845.77,0.0002,3]
[347707328,1736075445251,-566.98,0.0002,3]
[347707330,1736075445261,-500.0,0.0002,2]
[347707332,1736075445270,-785.9,0.0002,3]
[347707334,1736075445279,-1509.43,0.0002,3]
[347707336,1736075445290,-2013.44,0.0002,3]
[347707338,1736075445300,-561.54,0.0002,3]
[347707340,1736075445309,-10802.82,0.0002,3]
[347707342,1736075445319,-1824.09,0.0002,3]
[347707344,1736075445328,-35612.0,0.0002,3]
[347707346,1736075445338,-1707.81,0.0002,3]
[347707348,1736075445348,-654.38,0.0002,3]
[347707350,1736075445358,-6592.33,0.0002,3]
[347707352,1736075445368,-4510.09,0.0002,3]
[347707354,1736075445378,-500.0,0.0002,3]
[347707356,1736075445387,-1066.18,0.0002,3]
[347707358,1736075445397,-500.0,0.0002,3]
[347707360,1736075445407,-500.0,0.0002,3]
[347707362,1736075445417,-1833.92,0.0002,3]
[347707364,1736075445426,-500.0,0.0002,3]
[347707366,1736075445435,-500.0,0.0002,3]
[347707368,1736075445444,-500.0,0.0002,3]
[347707370,1736075445453,-733.28,0.0002,3]
[347707372,1736075445465,-525.2,0.0002,3]
[347707374,1736075445475,-3916.48,0.0002,3]
[347707376,1736075445484,-1237.83,0.0002,3]
[347707378,1736075445494,-3023.5,0.0002,3]
[347707380,1736075445503,-500.0,0.0002,3]
[347707382,1736075445513,-1213.2,0.0002,3]
[347707384,1736075445523,-500.0,0.0002,3]
[347707386,1736075445532,-500.0,0.0002,3]
[347707388,1736075445542,-500.0,0.0002,3]
[347707390,1736075445551,-610.07,0.0002,3]
[347707392,1736075445563,-500.0,0.0002,3]
[347707394,1736075445572,-342.64929549,0.0002,3]
[347707396,1736075445581,-1355.96,0.0002,3]
[347707398,1736075445591,-2122.05,0.0002,3]
[347707401,1736075445600,-606.57,0.0002,3]
[347707403,1736075445610,-1541.8,0.0002,3]
[347707405,1736075445619,-528.21,0.0002,3]
[347707407,1736075445629,-874.48,0.0002,3]
[347707409,1736075445638,-500.0,0.0002,3]
[347707411,1736075445647,-1622.68,0.0002,3]
[347707413,1736075445658,-749.53,0.0002,3]
[347707415,1736075445667,-500.0,0.0002,3]
[347707417,1736075445676,-500.0,0.0002,3]
[347707419,1736075445685,-1008.72943175,0.00020003,2]
[347707421,1736075445695,-465.47049221,0.00020105,2]
[347707423,1736075445704,-2927.28,0.0002012,3]
[347707425,1736075445714,-650.42,0.0002012,3]
[347707427,1736075445723,-500.0,0.0002012,3]
[347707429,1736075445733,-424.03989594,0.0002012,3]
[347707431,1736075445743,-1008.36,0.0002012,3]
[347707433,1736075445753,-500.0,0.0002012,3]
[347707435,1736075445763,-151.0,0.0002012,2]
[347707438,1736075445773,-151.0,0.0002012,2]
[347707440,1736075445782,-500.0,0.0002012,3]
[347707442,1736075445792,-7526.86,0.0002012,3]
[347707444,1736075445801,-1008.72943175,0.00020141,2]
[347707446,1736075445811,-3936.00864538,0.00020173,2]
[347707448,1736075445821,-7979.07461235,0.00020258,2]
[347707450,1736075445830,-5000.0,0.00020258,2]
[347707452,1736075445841,-5000.0,0.00020258,2]
[347707454,1736075445850,-5000.0,0.00020258,2]
[347707456,1736075445859,-5000.0,0.00020258,2]
[347707458,1736075445869,-5024.08939408,0.00020259,2]
[347707460,1736075445879,-182.71,0.00020262,2]
[347707462,1736075445888,-260.84013334,0.00020273,3]
[347707464,1736075445898,-771.43,0.00020273,3]
[347707466,1736075445907,-500.0,0.00020273,3]
[347707468,1736075445918,-500.0,0.00020273,3]
[347707470,1736075445928,-500.0,0.00020273,3]
[347707472,1736075445937,-500.0,0.00020273,3]
[347707474,1736075445946,-764.37,0.00020273,3]
[347707476,1736075445956,-559.18,0.00020273,3]
[347707478,1736075445965,-500.0,0.00020273,3]
[347707480,1736075445974,-500.0,0.00020273,3]
[347707482,1736075445983,-434.36186956,0.00020273,3]
[347707485,1736075445992,-1261.63,0.00020273,3]
[347707487,1736075446002,-500.0,0.00020273,3]
[347707489,1736075446011,-500.0,0.00020273,3]
[347707491,1736075446020,-265.03913936,0.00020273,3]
[347707493,1736075446029,-500.0,0.00020273,3]
[347707495,1736075446038,-500.0,0.00020273,3]
[347707497,1736075446048,-643.38,0.00020273,3]
[347707499,1736075446057,-620.09,0.00020273,3]
[347707501,1736075446067,-500.0,0.00020273,3]
[347707503,1736075446076,-564.37,0.00020273,3]
[347707505,1736075446086,-500.0,0.00020273,3]
[347707507,1736075446095,-500.0,0.00020273,3]
[347707509,1736075446104,-500.0,0.00020273,3]
[347707511,1736075446115,-907.48,0.00020273,3]
[347707512,1736075446123,-500.0,0.00020273,3]
[347707514,1736075446133,-500.0,0.00020273,3]
[347707517,1736075446143,-151.0,0.00020273,2]
[347707518,1736075446154,-151.0,0.00020273,2]
[347707520,1736075446163,-818.38,0.00020273,3]
[347707523,1736075446173,-525.75,0.00020273,3]
[347707524,1736075446182,-151.0,0.00020273,2]
[347707526,1736075446192,-151.0,0.00020273,2]
[347707529,1736075446201,-500.0,0.00020273,3]
[347707531,1736075446210,-991.73,0.00020273,3]
[347707533,1736075446220,-500.0,0.00020273,3]